[Event "Ramat Gan Masters-A Winter 2023"]
[Site "Ramat Gan/ISR"]
[Date "2023.01.17"]
[Round "1.1"]
[White "Sobel, Ido"]
[Black "Karp, Ilya"]
[Result "0-1"]
[Annotator "TA"]
[ECO "B23"]
[WhiteElo "1871"]
[BlackElo "2392"]
[PlyCount "68"]
[EventDate "2023.01.17"]
[EventType "swiss"]
[SourceTitle "playchess.com"]
[Source "ChessBase"]
[SourceQuality "1"]
[TimeControl "5400+30"]

{[%evp 9,68,-35,-10,-23,0,1,33,6,0,-3,0,-50,-42,-113,-88,-112,-56,-91,-87,-83,-33,-33,-39,-82,-73,-85,-69,-117,2,-64,0,0,22,0,0,0,24,46,66,56,85,35,73,0,148,66,346,338,325,8,36,-263,-255,-327,-332,-293,-112,-591,-567,-1867,-1822]} 1. e4 {[%emt 0:03:01]} c5 {[%emt 0:00:07]} 2. Nc3 {[%emt 0:00:03]} Nc6 {[%emt 0:00:21]} 3. f4 {[%emt 0:00:02]} e6 {[%emt 0:00:56]} 4. Nf3 {[%emt 0:00:24]} d5 {[%emt 0:02:59]} 5. d3 {[%emt 0:01:09]} Be7 {[%emt 0:02:09]} 6. Be2 {[%emt 0:01:38] B23: Closed Sicilian: Lines without g3.} d4 {[%emt 0:04:46]} 7. Nb1 {[%emt 0:00:22][%cal Bc3b1,Bb1d2,Bd2f1][%mdl 32] [#]} f5 $146 {[%emt 0:06:28]} ({Predecessor:} 7... Bd7 8. O-O Nh6 9. Qe1 f6 10. Qg3 O-O 11. f5 Nf7 12. Nh4 Nb4 13. Na3 e5 {½-½ Muehlbauer,A (1193)-Brandt,M (1359) GER-ch U10 Willingen 2019 (7)}) 8. Nbd2 {[%emt 0:10:26] White is slightly better.} Nf6 {[%emt 0:01:16]} 9. O-O {[%emt 0:00:49]} O-O {[%emt 0:03:14]} 10. Qe1 {[%emt 0:01:50]} (10. a4 $11) 10... Ng4 $1 $15 {[%emt 0:07:47] Strongly threatening ...Ne3.} 11. Bd1 {[%emt 0:06:21]} (11. Nb3 $15) 11... Ne3 $17 {[%emt 0:04:49]} 12. Rf2 {[%emt 0:00:02]} b6 {[%emt 0:00:39]} (12... e5 $1 $17 {[%cal Re5f4]} 13. Nxe5 Nxe5 14. fxe5 f4) 13. Nf1 {[%emt 0:08:22]} fxe4 {[%emt 0:06:09]} 14. dxe4 {[%emt 0:00:03]} Ng4 {[%emt 0:06:59] Black has more active pieces.} (14... Rxf4 $6 15. Nxe3 Rxe4 16. c3 $11) (14... Nxd1 $17 15. Qxd1 c4) 15. Rd2 $15 {[%emt 0:03:52]} Qc7 {[%emt 0:07:15]} 16. g3 {[%emt 0:01:46]} e5 {[%emt 0:03:15]} 17. f5 {[%emt 0:02:13]} Nf6 {[%emt 0:02:53][%cal Of6e4]} 18. Rg2 {[%emt 0:12:04]} (18. g4 $15 {is superior.}) 18... c4 {[%emt 0:05:50]} ({Black should play} 18... Nxe4 $1 $17 {...Nd6 would be deadly.} 19. Qxe4 Bxf5 20. Qd5+ Kh8) 19. c3 {[%emt 0:09:36]} (19. g4 $11) 19... Kh8 {[%emt 0:03:47]} ({Better is} 19... Bb7 $15) 20. g4 {[%emt 0:01:02]} Bc5 {[%emt 0:01:43]} 21. Kh1 $1 {[%emt 0:00:12]} Bb7 {[%emt 0:02:31]} 22. Bg5 {[%emt 0:15:18]} dxc3 {[%emt 0:09:11]} (22... Rad8 $5 {[%cal Rb6b5]}) 23. bxc3 {[%emt 0:00:02]} Rae8 {[%emt 0:05:04][%cal Of6e4] ...Nxe4! is the strong threat.} 24. Bxf6 {[%emt 0:05:12]} Rxf6 {[%emt 0:00:42]} 25. g5 {[%emt 0:00:02]} (25. Ne3 $16) 25... Rff8 {[%emt 0:00:07][%cal Oc6d4]} 26. Qh4 {[%emt 0:03:08]} (26. Qg3 $16) 26... Qe7 {[%emt 0:00:02]} (26... Ne7 $11 {remains equal.}) 27. Qh5 {[%emt 0:01:46]} (27. Ng3 $16) 27... Nd8 $2 {[%emt 0:02:46][%mdl 8192] [#]} (27... g6 $14 28. fxg6 Qg7) 28. Nh4 $1 $18 {[%emt 0:08:16]} ({Weaker is} 28. g6 h6 29. Bc2 b5 $11) 28... Kg8 {[%emt 0:01:54] [#]} 29. f6 $2 {[%emt 0:01:32]} ({Inferior is} 29. g6 h6 30. Ng3 Bc6 $15) (29. Be2 $1 $18 {[%cal Re2c4]} b5 30. f6 (30. g6 h6 $15)) 29... Bxe4 {[%emt 0:01:02] A strong pair of Bishops.} 30. Bc2 $2 {[%emt 0:02:13][%mdl 8192]} (30. Bf3 $14 Bxf3 31. Nxf3) 30... Bxg2+ $19 {[%emt 0:00:37]} 31. Kxg2 {[%emt 0:01:03]} gxf6 {[%emt 0:00:54]} 32. g6 {[%emt 0:02:01][%cal Rg6h7]} hxg6 {[%emt 0:04:34]} (32... Qb7+ $19 {is more deadly.} 33. Kg3 e4) 33. Bxg6 $2 {[%emt 0:00:34][%mdl 8192] [#]} (33. Nxg6 $17 {was the crucial defense.} Qb7+ 34. Kh3) 33... Ne6 $1 {[%emt 0:00:26]} 34. Kh3 {[%emt 0:00:34]} (34. Kh1 Nf4) 34... Nf4+ {[%emt 0:04:18] An entertaining game by Karp.   Weighted Error Value: White=0.92/Black=0.44} 0-1

[Event "Ramat Gan Masters-A Winter 2023"]
[Site "Ramat Gan/ISR"]
[Date "2023.01.17"]
[Round "1.2"]
[White "Chernomordik, Pavel"]
[Black "Kochavi, Dana"]
[Result "1/2-1/2"]
[Annotator "TA"]
[ECO "B11"]
[WhiteElo "2198"]
[BlackElo "1956"]
[PlyCount "108"]
[EventDate "2023.01.17"]
[EventType "swiss"]
[SourceTitle "playchess.com"]
[Source "ChessBase"]
[SourceQuality "1"]
[TimeControl "5400+30"]

{[%evp 10,108,34,25,37,27,27,12,18,19,21,0,0,0,0,5,0,0,0,21,36,27,48,0,0,0,0,0,37,20,0,0,21,0,0,-33,-33,-33,-33,-33,-33,-33,-33,-35,-25,-36,-36,-37,-25,-32,-18,-27,-21,-66,-18,-17,-17,-82,-61,-104,-99,-99,-97,-199,-132,-125,-31,-93,0,-90,-82,-161,-118,-312,-125,-143,-135,-237,-164,-807,-772,-738,-263,-263,-263,-263,-263,-263,-269,-275,-269,-234,-234,-200,0,-118,-118,-118,-118,-163,-119]} 1. e4 {[%emt 0:00:05]} c6 {[%emt 0:00:07]} 2. Nc3 {[%emt 0:00:15]} d5 {[%emt 0:00:05]} 3. Nf3 {[%emt 0:00:11]} dxe4 {[%emt 0:00:05]} 4. Nxe4 {[%emt 0:00:06]} Nf6 {[%emt 0:00:06]} 5. Qe2 {[%emt 0:00:05]} Nxe4 {[%emt 0:00:07]} 6. Qxe4 {[%emt 0:00:02]} Nd7 {[%emt 0:00:08] B11: Caro-Kann: Two Knights Variation.} 7. Bc4 {[%emt 0:00:21][%cal Bf1c4,Bc4b3,Bb3c2][%mdl 32] Ng5 is the strong threat.} Nf6 {[%emt 0:00:04] [#]} 8. Ne5 $1 {[%emt 0:00:18][%csl Ge5][%cal Rc4f7]} e6 {[%emt 0:00:06] The position is equal.} 9. Qe2 {[%emt 0:00:03]} b5 {[%emt 0:00:05]} 10. Bb3 {[%emt 0:01:21]} (10. Nxc6 Qc7 11. Bd3 (11. Bxb5 a6 $17) 11... a6 $15) 10... Qc7 {[%emt 0:00:09]} 11. d4 {[%emt 0:00:40]} Bd6 {[%emt 0:00:10]} 12. O-O {[%emt 0:03:19]} a5 {[%emt 0:01:29] Threatens to win with ...a4.} 13. c3 {[%emt 0:01:18]} O-O {[%emt 0:00:22]} 14. Re1 {[%emt 0:00:43]} a4 {[%emt 0:07:12]} 15. Bc2 {[%emt 0:00:25]} c5 {[%emt 0:00:09] [#]} 16. Bg5 $146 {[%emt 0:07:46]} (16. Qxb5 cxd4 17. Bf4 a3 $19) (16. Qd3 $14 {might be stronger.} g6 17. Bh6 (17. Qxb5 cxd4 18. Qc6 Bxe5 $17)) ({Predecessor:} 16. Qd3 Rd8 17. Ng4 Nxg4 18. Qxh7+ Kf8 19. Qh8+ Ke7 20. Qxg7 Bxh2+ 21. Kf1 Ba6 22. Bg5+ {½-½ Georgiadis,N (2529)-Howell,D (2701) Bundesliga 1920 2019 (8.2)}) 16... Nd5 $11 {[%emt 0:05:52]} 17. Qd3 {[%emt 0:10:45][%csl Gc2][%cal Rd3h7]} (17. Qxb5 $2 Ba6 18. Qxa4 Bd3 $19) 17... f5 {[%emt 0:00:58]} 18. a3 {[%emt 0:06:23]} (18. Qxb5 $2 cxd4 19. Qc6 Bxe5 $19) 18... c4 {[%emt 0:05:03]} 19. Qd1 {[%emt 0:09:39]} Bb7 {[%emt 0:06:56]} 20. Bd2 {[%emt 0:09:20]} Rae8 {[%emt 0:02:26]} 21. Re2 {[%emt 0:03:31]} (21. Qh5 {seems wilder.} Nf6 22. Qh4 Be4 23. Bxe4 Nxe4 24. Bf4) 21... Ne7 {[%emt 0:09:34]} 22. Qe1 {[%emt 0:06:10]} Ng6 {[%emt 0:03:44]} 23. f4 {[%emt 0:02:20]} Ne7 {[%emt 0:12:19]} 24. Re3 {[%emt 0:04:50]} Nd5 {[%emt 0:04:44][%csl LRe3,LRf4][%cal Od5f4]} 25. Rh3 {[%emt 0:00:24]} Nf6 {[%emt 0:14:04]} 26. Bd1 {[%emt 0:03:56]} Ne4 {[%emt 0:02:49]} 27. Be3 {[%emt 0:07:24]} Bxe5 {[%emt 0:02:12]} (27... g6 {feels hotter.} 28. Qh4 Nf6 29. Bc2 Qg7) 28. dxe5 {[%emt 0:04:01]} Rd8 {[%emt 0:03:32]} 29. Bd4 {[%emt 0:02:07]} Nc5 {[%emt 0:01:31]} 30. Qh4 {[%emt 0:01:14]} g6 {[%emt 0:00:43]} 31. Bc2 {[%emt 0:02:16]} Rd7 {[%emt 0:00:27]} (31... Be4 $15 {is more appropriate.} 32. Qf2 (32. Bxc5 $2 Qxc5+ 33. Kf1 Qa7 $17) 32... Rd5) 32. Qf2 {[%emt 0:00:30] White is weak on the light squares} Rc8 {[%emt 0:01:26]} 33. Rg3 {[%emt 0:00:39] [#]} (33. Re1 $11) 33... Be4 $1 $17 {[%emt 0:01:30]} 34. Re1 {[%emt 0:03:58]} Bxc2 {[%emt 0:00:26]} 35. Qxc2 {[%emt 0:00:23]} Rcd8 {[%emt 0:01:39]} 36. h4 {[%emt 0:03:16] [#]} (36. Rf3 $17 {is a better defense.}) 36... Nb3 {[%emt 0:01:37]} ({Better is} 36... Rxd4 $1 $19 37. cxd4 Rxd4) 37. Be3 {[%emt 0:01:16]} Rd3 {[%emt 0:03:08]} ({Black should try} 37... Nd2 $17 38. Bd4 Rxd4 39. cxd4 Rxd4) 38. Qf2 {[%emt 0:01:28]} (38. h5 $15) 38... Qf7 {[%emt 0:03:51]} (38... Qe7 $17 {[%cal Ob3d2]} 39. h5 Qg7) 39. Bb6 {[%emt 0:01:01]} (39. h5 $11) 39... R8d7 $36 {[%emt 0:02:01][%mdl 2048] White is under strong pressure.} 40. Kh2 {[%emt 0:01:45]} (40. h5 $17) 40... Qe7 {[%emt 0:01:33]} 41. Kh3 {[%emt 0:00:46]} (41. Rxd3 $17 cxd3 42. Rd1) 41... Rxg3+ {[%emt 0:00:55]} (41... Rd2 $19 {and Black stays clearly on top.} 42. Qf3 R7d5) 42. Kxg3 {[%emt 0:01:12]} Rd3+ {[%emt 0:00:27]} 43. Re3 {[%emt 0:01:47]} (43. Be3 $17 {was forced.}) 43... Nd2 {[%emt 0:00:49] ( -> ...Ne4+)} ({Weaker is} 43... Rd2 44. Re2 Rd1 45. Kh2) 44. Qe2 $2 {[%emt 0:01:06]} (44. Kh2) 44... Ne4+ $19 {[%emt 0:01:10]} 45. Kh3 {[%emt 0:00:09]} Rd2 $2 {[%emt 0:01:35]} (45... Rd1 {[%cal Rd1h1]} 46. g3 Qb7 47. Rxe4 Rb1) 46. Rxe4 {[%emt 0:01:12]} Rxe2 {[%emt 0:00:04]} 47. Rxe2 {[%emt 0:00:06][%mdl 4096] Endgame KQ-KRB} Qb7 {[%emt 0:00:04]} 48. Bd4 {[%emt 0:00:26]} h6 {[%emt 0:00:05]} 49. Kg3 {[%emt 0:00:29]} Kg7 {[%emt 0:00:25]} 50. Be3 {[%emt 0:00:49]} Qe4 {[%emt 0:03:56][%cal Og6g5] Hoping for ...g5!} 51. Kf2 {[%emt 0:00:09]} Qb7 $2 {[%emt 0:00:36]} (51... g5 $19 52. hxg5 hxg5 53. fxg5 f4) 52. Rd2 {[%emt 0:00:42]} (52. Kg3 $1 $11) 52... Qc8 {[%emt 0:00:59]} 53. Rd6 {[%emt 0:00:57]} Kf7 {[%emt 0:00:04]} 54. Rb6 {[%emt 0:00:34]} Qd7 {[%emt 0:00:18] Weighted Error Value: White=0.39/Black=0.33} 1/2-1/2

[Event "Ramat Gan Masters-A Winter 2023"]
[Site "Ramat Gan/ISR"]
[Date "2023.01.17"]
[Round "1.3"]
[White "Tashkinova, Sofiia"]
[Black "Sherman, Reem"]
[Result "1-0"]
[Annotator "TA"]
[ECO "B22"]
[WhiteElo "1928"]
[BlackElo "2249"]
[PlyCount "163"]
[EventDate "2023.01.17"]
[EventType "swiss"]
[SourceTitle "playchess.com"]
[Source "ChessBase"]
[SourceQuality "1"]
[TimeControl "5400+30"]

{[%evp 13,163,0,0,-17,-21,-74,-25,-57,-48,-59,-62,-83,-89,-88,-76,-84,-60,-66,-59,-69,-62,-50,-50,-35,-3,-51,-22,-29,-16,-22,-24,-93,-60,-43,-57,-43,16,11,0,0,13,0,0,0,55,45,92,74,107,43,124,-15,312,291,290,245,241,245,252,239,237,240,312,320,329,314,332,330,417,322,412,387,377,326,335,314,302,279,475,230,312,303,300,309,292,292,504,473,643,640,877,825,861,862,837,810,2122,1986,2625,2260,2685,2403,2164,790,750,450,489,481,473,462,11310,472,818,683,1013,447,443,443,443,434,422,422,920,891,689,713,2632,2010,1560,1252,29962,29960,29962,29958,29972,29969,29974,29976,29976,29977,29977,29978,29978,29979,29980,29979,29979,29980,29981,29982,29982,29983]} 1. e4 {[%emt 0:00:03]} c5 {[%emt 0:00:21]} 2. Nf3 {[%emt 0:00:20]} g6 {[%emt 0:00:15]} 3. c3 {[%emt 0:00:44]} d5 {[%emt 0:00:25]} 4. exd5 {[%emt 0:01:02]} Qxd5 {[%emt 0:00:07]} 5. d4 {[%emt 0:00:49]} Bg7 {[%emt 0:00:16]} 6. dxc5 {[%emt 0:02:47]} Qxd1+ {[%emt 0:00:19]} 7. Kxd1 {[%emt 0:00:06]} Nf6 {[%emt 0:01:31][%cal Bg8f6,Bf6d5,Bd5e3][%mdl 32]} 8. h3 {[%emt 0:04:29] B22: Sicilian: 2 c3.} Nbd7 {[%emt 0:02:30][%cal Oe8g8][%mdl 1024] Black has compensation.} 9. Bb5 {[%emt 0:04:00] [#]} (9. Bc4 $11) 9... a6 $146 {[%emt 0:03:50]} ({Black should play} 9... O-O $17) ({Predecessor:} 9... O-O 10. c6 Nc5 11. Be3 Ne6 12. Nd4 Nc7 13. cxb7 Bxb7 14. Bc6 Rab8 15. Bxb7 Rxb7 {1-0 Gombos,A (2093)-Ruszin,T (2108) HUN-chT2 Szechenyi 0910 2009 (6.5)}) 10. Ba4 {[%emt 0:01:33] Black has an edge.} O-O $1 {[%emt 0:00:15]} 11. Be3 {[%emt 0:09:04]} Nd5 {[%emt 0:16:06]} 12. c6 {[%emt 0:15:26]} Nxe3+ {[%emt 0:02:09]} 13. fxe3 {[%emt 0:01:17]} Nc5 {[%emt 0:01:51]} 14. cxb7 {[%emt 0:02:23]} Bxb7 {[%emt 0:00:06]} (14... Rd8+ {with more complications.} 15. Nbd2 Bxb7 16. Bc2 a5) 15. Bc2 {[%emt 0:01:07]} Rab8 {[%emt 0:03:21]} 16. Kc1 {[%emt 0:04:49]} Bh6 {[%emt 0:02:49]} 17. Re1 {[%emt 0:01:10]} Rfd8 {[%emt 0:03:42]} 18. Nbd2 {[%emt 0:01:33]} f6 {[%emt 0:12:06]} 19. a4 {[%emt 0:07:46]} (19. Bb3+ $11 Kg7 20. Kc2) 19... e5 {[%emt 0:01:51]} 20. a5 {[%emt 0:01:25]} Nd3+ {[%emt 0:05:06]} 21. Bxd3 {[%emt 0:01:42]} Rxd3 {[%emt 0:00:07]} 22. Kc2 {[%emt 0:05:48]} (22. e4 $11 {keeps the balance.}) 22... Rbd8 {[%emt 0:01:54]} 23. Nf1 {[%emt 0:10:25]} Be4 {[%emt 0:04:39] Threatens to win with ...Rd2+.} 24. Kc1 {[%emt 0:02:26] Wards off Rd2} Kf7 {[%emt 0:06:50]} (24... R3d7 $15) 25. Ra4 $11 {[%emt 0:01:43]} Bc6 {[%emt 0:01:10] A strong pair of Bishops.} 26. Rh4 {[%emt 0:01:56]} Kg7 {[%emt 0:03:56]} (26... Bg7 $5 {[%cal Rc6b5]}) 27. Kc2 {[%emt 0:01:53][%cal Of3d4]} R3d5 {[%emt 0:05:22] Inhibits Nd4.} 28. Rc4 {[%emt 0:03:55]} R5d6 {[%emt 0:04:15]} (28... Bb5 $11 29. Rc7+ R8d7 30. Rxd7+ Bxd7) 29. N1d2 $14 {[%emt 0:02:35]} f5 {[%emt 0:01:13] Repels Ne4} (29... Kh8 $14) 30. g4 $16 {[%emt 0:03:01][%cal Oc4c6]} (30. Rxc6 Rxc6 31. Nxe5 Re6 $15) 30... Kf6 {[%emt 0:02:56]} 31. Rc5 {[%emt 0:02:27]} (31. Rb4 $16) 31... Bg7 {[%emt 0:03:55] [#]} (31... Ba8 $14) 32. Re2 {[%emt 0:01:13]} ({White should try} 32. g5+ $1 $16 Kf7 33. e4) 32... h6 $2 {[%emt 0:04:48][%mdl 8192] This costs Black the game.} (32... Rc8 $1 $11 {and Black has nothing to worry.} 33. gxf5 (33. Rxe5 $2 Rxd2+ {[%mdl 64] Remove Defender} 34. Rxd2 Bxf3 $19) 33... gxf5) 33. Nxe5 $18 {[%emt 0:01:41]} (33. Rxe5 fxg4 34. hxg4 Rxd2+ 35. Rxd2 Bxf3 $11) 33... Be8 {[%emt 0:00:10]} 34. Nef3 {[%emt 0:00:58]} Bf8 {[%emt 0:00:44][%cal Od6d2] aiming for ...Rxd2+!} 35. Nd4 {[%emt 0:01:20]} Rxd4 {[%emt 0:02:07]} 36. exd4 {[%emt 0:00:09]} Bxc5 {[%emt 0:00:03]} 37. dxc5 {[%emt 0:00:07]} fxg4 {[%emt 0:00:23][%mdl 4096] Endgame KRB-KRN} 38. Ne4+ {[%emt 0:01:04]} (38. hxg4 Bd7 39. Ne4+ Kg7 $18) 38... Kg7 {[%emt 0:00:41]} 39. hxg4 {[%emt 0:00:27]} Bb5 {[%emt 0:02:21]} 40. Rd2 {[%emt 0:00:21]} Rf8 {[%emt 0:00:11]} 41. g5 {[%emt 0:02:10]} Bc6 {[%emt 0:01:16]} 42. gxh6+ {[%emt 0:00:25]} Kxh6 {[%emt 0:00:02]} 43. Rh2+ {[%emt 0:00:21]} Kg7 {[%emt 0:00:04]} 44. Nd6 {[%emt 0:01:07]} g5 {[%emt 0:00:10]} 45. b4 {[%emt 0:00:46] c4 is the strong threat.} Rf3 $2 {[%emt 0:02:31]} (45... Kg6 46. Nc4 Re8) 46. Nc4 {[%emt 0:00:54]} (46. c4 $142) 46... Be4+ {[%emt 0:00:59]} 47. Kb2 {[%emt 0:00:18]} Bd5 {[%emt 0:00:40]} 48. Ne5 {[%emt 0:00:45]} Re3 {[%emt 0:00:33]} 49. Ng4 {[%emt 0:00:26]} Rg3 {[%emt 0:00:05]} (49... Re6 {is a better defense.} 50. Rf2 Bh1) 50. Rd2 $1 {[%emt 0:00:32]} Be6 {[%emt 0:00:21]} 51. Ne5 {[%emt 0:00:08]} Kf6 {[%emt 0:00:34]} 52. Nd7+ {[%emt 0:00:19]} Ke7 {[%emt 0:00:53]} 53. c6 {[%emt 0:00:20][%cal Ob4b5]} Rh3 {[%emt 0:00:08]} 54. Nc5 {[%emt 0:00:13] Strongly threatening Nxe6.} Bc8 {[%emt 0:00:33] [#]} 55. b5 $1 {[%emt 0:00:55]} axb5 {[%emt 0:00:49]} (55... Rh6 56. bxa6) 56. a6 {[%emt 0:00:09]} Rh8 {[%emt 0:00:20]} 57. Nb7 {[%emt 0:00:49] And now a7 would win.} Be6 {[%emt 0:01:10]} 58. c7 {[%emt 0:01:08]} (58. Nd8 $142 Rxd8 59. Rxd8 Kxd8 60. a7) 58... Ra8 {[%emt 0:00:50]} 59. Nc5 {[%emt 0:00:32] White wants to mate with Nxe6.} Bc8 {[%emt 0:00:08]} 60. Rd8 {[%emt 0:00:10]} g4 {[%emt 0:00:22]} 61. Ne4 {[%emt 0:00:34] White threatens Nd6 and mate.} Ke6 {[%emt 0:00:54]} (61... Rxa6 $142 62. Rxc8 Rc6) 62. Ng3 {[%emt 0:00:36]} (62. Nd6 $142 Rxa6 63. Nxc8) 62... Ke5 {[%emt 0:00:25]} (62... Rxa6 $142 63. Rxc8 Kd7) 63. Kb3 {[%emt 0:00:37] Black must now prevent Kb4.} Kf4 {[%emt 0:00:55]} 64. Nf1 {[%emt 0:00:13]} (64. Ne2+ $142 Ke5 65. Kb4) 64... Be6+ {[%emt 0:00:24]} 65. Kb4 {[%emt 0:00:22]} Rxa6 {[%emt 0:00:11]} 66. c8=Q {[%emt 0:00:26]} ({Less strong is} 66. c8=R Bxc8 67. Rxc8 Kf3 68. Rf8+ Ke2 69. Kxb5 Ra1 70. Ng3+ Ke3 $18) ({Much less strong is} 66. Kxb5 Ra7 67. Rf8+ (67. c8=N Rc7 $11) 67... Ke5 $18) 66... Bxc8 {[%emt 0:00:01]} 67. Rxc8 {[%emt 0:00:02] KRN-KR} Ra1 {[%emt 0:00:46] [#]} (67... Rf6 $142 68. Rg8 Rc6) 68. Kxb5 $1 {[%emt 0:00:17]} Ke4 {[%emt 0:00:09]} (68... Ke5 69. Re8+) 69. Rf8 {[%emt 0:01:07]} Kd3 {[%emt 0:00:04]} 70. c4 {[%emt 0:00:30][%cal Bc3c4,Bc4c5,Bc5c6,Bc6c7][%mdl 32]} Rb1+ {[%emt 0:00:51]} 71. Kc5 {[%emt 0:00:06] Rf4 would be deadly.} Rb3 {[%emt 0:01:14]} 72. Rf4 {[%emt 0:00:38] White mates.} Ke2 {[%emt 0:00:27] [#]} 73. Rxg4 $1 {[%emt 0:00:25]} Kxf1 {[%emt 0:00:04] KR-KR} (73... Ra3 74. Rf4) 74. Kc6 {[%emt 0:00:06]} Ke2 {[%emt 0:00:10]} 75. c5 {[%emt 0:00:08]} Kf3 {[%emt 0:00:08]} 76. Ra4 {[%emt 0:00:09]} Rb1 {[%emt 0:00:10]} 77. Kc7 {[%emt 0:00:05]} Rc1 {[%emt 0:00:11]} 78. c6 {[%emt 0:00:04]} Rc2 {[%emt 0:00:10]} 79. Kb7 {[%emt 0:00:05]} Rb2+ {[%emt 0:00:05]} 80. Kc8 {[%emt 0:00:07]} Rc2 {[%emt 0:00:03]} 81. c7 {[%emt 0:00:13]} Ke3 {[%emt 0:00:11]} 82. Rb4 {[%emt 0:05:09] Weighted Error Value: White=0.22 (precise) /Black=0.39} 1-0